bitfinex-derivatives/quotes_BTCF0:USTF0_20240825
["timestamp","ask_amount","ask_price","bid_price","bid_amount"]
[1724571573666,0.0484,63867.0,63866.0,0.078248]
[1724571574161,0.3608,63869.0,63866.0,0.078248]
[1724571574361,0.001,63866.0,63862.0,0.0482]
[1724571574865,0.001,63866.0,63865.0,0.078249]
[1724571576665,0.001,63869.0,63868.0,0.078245]
[1724571577263,0.001,63869.0,63862.0,0.409]
[1724571577264,0.001,63866.0,63864.0,0.078249]
[1724571577458,0.002,63866.0,63865.0,0.002]
[1724571577660,0.001,63866.0,63865.0,0.002]
[1724571578361,0.078246,63868.0,63865.0,0.078249]
[1724571578558,0.078246,63868.0,63866.0,0.078248]
[1724571578764,0.3608,63870.0,63862.0,0.409]
[1724571579159,0.001,63866.0,63865.0,0.080249]
[1724571579364,0.002,63866.0,63865.0,0.080249]
[1724571579967,0.001,63866.0,63865.0,0.080249]
[1724571580465,0.001,63870.0,63869.0,0.078244]
[1724571580770,0.001,63870.0,63869.0,0.439044]
[1724571582000,0.00023486,63874.0,63873.0,0.078239]
[1724571586368,0.00023486,63874.0,63869.0,0.3608]
[1724571586566,0.07847286,63874.0,63869.0,0.3608]
[1724571587267,0.07847286,63874.0,63872.0,0.07824]
[1724571588460,0.00023486,63874.0,63873.0,0.078239]
[1724571589563,0.04656285,63874.0,63873.0,0.078239]
[1724571589767,0.00023486,63874.0,63873.0,0.078239]
[1724571600676,0.04683618,63874.0,63873.0,0.078239]
[1724571600974,0.00023486,63874.0,63873.0,0.078239]
[1724571602769,0.00023486,63874.0,63873.0,0.1248115]
[1724571602969,0.00023486,63874.0,63873.0,0.078239]
[1724571606162,0.06236396,63874.0,63873.0,0.078239]
[1724571606287,0.00023486,63874.0,63873.0,0.078239]
[1724571610781,0.00023486,63874.0,63873.0,0.12516707]
[1724571611075,0.00023486,63874.0,63873.0,0.078239]
[1724571611279,0.00023486,63874.0,63869.0,0.3608]
[1724571611592,0.00023486,63874.0,63865.0,0.04693517]
[1724571611593,0.3608,63870.0,63865.0,0.04693517]
[1724571611911,0.3608,63870.0,63860.0,0.04693517]
[1724571611912,0.078252,63862.0,63860.0,0.04693517]
[1724571612071,0.5168465,63862.0,63860.0,0.04693517]
[1724571612273,0.439052,63862.0,63858.0,0.12519217]
[1724571612680,0.439052,63862.0,63858.0,0.04693517]
[1724571612865,0.439052,63862.0,63857.0,0.04693517]
[1724571613275,0.439052,63862.0,63856.0,0.36923517]
[1724571613777,0.439052,63862.0,63861.0,0.00223486]
[1724571614783,0.078252,63862.0,63861.0,0.00223486]
[1724571615006,0.0465,63866.0,63861.0,0.00223486]
[1724571615007,0.078248,63866.0,63861.0,0.00223486]
[1724571615169,0.04660367,63863.0,63862.0,0.078252]
[1724571615441,0.04660367,63864.0,63863.0,0.078251]
[1724571615585,0.36164,63870.0,63864.0,0.07825]
[1724571615586,0.04660367,63865.0,63864.0,0.07825]
[1724571615782,0.3608,63870.0,63861.0,0.04917003]
[1724571615783,0.04660367,63866.0,63865.0,0.078249]
[1724571615972,0.3608,63870.0,63866.0,0.078248]
[1724571615973,0.04660367,63867.0,63866.0,0.078248]
[1724571616179,0.06214171,63869.0,63866.0,0.078248]
[1724571616581,0.06214171,63869.0,63867.0,0.078246]
[1724571617382,0.06214171,63869.0,63862.0,0.14283517]
[1724571617383,0.078246,63867.0,63863.0,0.078251]
[1724571617578,0.04659944,63864.0,63863.0,0.078251]
[1724571618266,0.04659944,63864.0,63862.0,0.0474]
[1724571618267,0.04659944,63865.0,63864.0,0.07825]
[1724571618880,0.078246,63867.0,63864.0,0.07825]
[1724571619081,0.14038771,63867.0,63864.0,0.07825]
[1724571619875,0.14038771,63867.0,63864.0,0.08025]
[1724571619876,0.001,63865.0,63864.0,0.08025]
[1724571620368,0.079249,63865.0,63864.0,0.002]
[1724571620572,0.14039071,63865.0,63861.0,0.00023486]
[1724571620774,0.078251,63864.0,63861.0,0.00023486]
[1724571620978,0.04659461,63863.0,63861.0,0.00023486]
[1724571621184,0.078251,63864.0,63861.0,0.00023486]
[1724571621185,0.04659307,63862.0,63861.0,0.00023486]
[1724571621477,0.078251,63864.0,63861.0,0.00023486]
[1724571621678,0.06314171,63865.0,63861.0,0.00023486]
[1724571621883,0.3608,63863.0,63861.0,0.00023486]
[1724571622177,0.078252,63862.0,63861.0,0.00023486]
[1724571624109,0.14034438,63862.0,63861.0,0.00223486]
[1724571624626,0.078252,63862.0,63861.0,0.00223486]
[1724571625576,0.14032379,63862.0,63861.0,0.00223486]
[1724571627309,0.078252,63862.0,63861.0,0.00223486]
[1724571628280,0.995812,63862.0,63861.0,0.00223486]
[1724571628788,0.996212,63862.0,63861.0,0.00223486]
[1724571629283,0.596212,63862.0,63861.0,0.00223486]
[1724571629482,0.126452,63862.0,63861.0,0.00223486]
[1724571629876,0.1406937,63862.0,63861.0,0.00223486]
[1724571630129,0.078652,63862.0,63861.0,0.00223486]
[1724571630678,0.1406937,63862.0,63861.0,0.00223486]
[1724571630879,0.078652,63862.0,63861.0,0.00223486]
[1724571633886,0.06244697,63862.0,63861.0,0.08048886]
[1724571634185,0.0004,63862.0,63861.0,0.08048886]
[1724571634788,0.04694762,63862.0,63861.0,0.08048886]
[1724571634996,0.0004,63862.0,63861.0,0.08048886]
[1724571635787,0.0004,63862.0,63861.0,0.44128886]
[1724571637386,0.04694919,63862.0,63861.0,0.48811578]
[1724571637793,0.0004,63862.0,63861.0,0.44128886]
[1724571638292,0.04694919,63862.0,63861.0,0.44128886]
[1724571638597,0.0004,63862.0,63861.0,0.44128886]
[1724571639092,0.0004,63862.0,63861.0,0.48812602]
[1724571639348,0.0004,63862.0,63861.0,0.44128886]
[1724571640397,0.04700425,63862.0,63861.0,0.44128886]
[1724571641199,0.0004,63862.0,63861.0,0.48814939]
[1724571641495,0.0004,63862.0,63861.0,0.44128886]
[1724571641895,0.0004,63862.0,63861.0,0.08048886]
[1724571642859,0.1560345,63872.0,63861.0,0.08048886]
[1724571642860,0.04660425,63865.0,63864.0,0.07825]
[1724571643099,0.04661986,63868.0,63864.0,0.06257319]
[1724571643294,0.04661986,63870.0,63869.0,0.078244]
[1724571643800,0.06204697,63873.0,63872.0,0.07824]
[1724571644095,0.00023486,63874.0,63873.0,0.078239]
[1724571644299,0.06239457,63874.0,63873.0,0.078239]
[1724571644489,0.00023486,63874.0,63873.0,0.078239]
[1724571644885,0.00023486,63874.0,63873.0,0.439039]
[1724571646296,0.00823486,63874.0,63873.0,0.954419]
[1724571646496,0.00823486,63874.0,63873.0,1.00127631]
[1724571646699,0.00823486,63874.0,63873.0,0.954419]
[1724571647097,0.01723486,63874.0,63873.0,0.954419]
[1724571647290,0.01723486,63874.0,63873.0,1.00121619]
[1724571647802,0.01723486,63874.0,63873.0,0.954419]
[1724571648190,0.01723486,63874.0,63873.0,1.00119965]
[1724571648595,0.01723486,63874.0,63873.0,0.53151965]
[1724571649002,0.01723486,63874.0,63873.0,1.40119965]
[1724571649216,8.6e-07,63874.0,63873.0,1.793458]
[1724571650096,8.6e-07,63874.0,63873.0,1.315219]
[1724571650303,8.6e-07,63874.0,63873.0,1.393458]
[1724571650608,8.6e-07,63874.0,63873.0,1.793958]
[1724571651106,0.00023486,63880.0,63879.0,0.078232]
[1724571651296,0.00023486,63880.0,63879.0,0.439032]
[1724571651986,0.00023486,63880.0,63879.0,0.439432]
[1724571652618,0.00623486,63880.0,63879.0,0.440432]
[1724571653107,0.01323486,63880.0,63879.0,0.441432]
[1724571653698,0.3608,63893.0,63879.0,0.3632]
[1724571653915,0.40741596,63893.0,63888.0,0.07822]
[1724571654104,0.3608,63893.0,63885.0,0.3608]
[1724571654502,0.3608,63893.0,63892.0,0.0004]
[1724571655311,0.3668,63893.0,63892.0,0.0004]
[1724571656195,0.3728,63893.0,63892.0,0.0014]
[1724571656403,0.3838,63893.0,63892.0,0.0014]
[1724571656597,0.3718,63893.0,63892.0,0.0014]
[1724571656905,0.3838,63893.0,63892.0,0.0024]
[1724571657313,0.462014,63893.0,63892.0,0.0024]
[1724571658507,0.50862996,63893.0,63892.0,0.0024]
[1724571659311,0.462014,63893.0,63892.0,0.0024]
[1724571664015,0.462014,63893.0,63892.0,0.080616]
[1724571664513,0.023,63893.0,63892.0,0.080616]
[1724571667407,0.00023486,63899.0,63892.0,0.080616]
[1724571667408,0.00023486,63899.0,63898.0,0.078208]
[1724571667608,0.00023486,63899.0,63898.0,0.439008]
[1724571668214,0.00023486,63899.0,63898.0,0.439408]
[1724571669617,0.00223486,63899.0,63898.0,0.439408]
[1724571670023,0.00223486,63899.0,63898.0,0.48614335]
[1724571670224,0.00323486,63899.0,63898.0,0.48614335]
[1724571670617,0.00323486,63899.0,63898.0,1.35562335]
[1724571671916,0.04655627,63909.0,63908.0,0.078196]
[1724571672119,0.0963,63912.0,63904.0,0.3608]
[1724571672319,0.0465671,63909.0,63908.0,0.078196]
[1724571673223,0.0963,63912.0,63909.0,0.078195]
[1724571673723,0.0963,63912.0,63909.0,0.078194]
[1724571673926,0.0963,63912.0,63911.0,0.0004]
[1724571675027,0.0963,63912.0,63911.0,0.0014]
[1724571676822,0.0963,63912.0,63911.0,0.0024]
[1724571681520,0.174491,63912.0,63911.0,0.0024]
[1724571686625,0.264491,63912.0,63911.0,0.0024]
[1724571687221,0.32665071,63912.0,63911.0,0.0024]
[1724571688442,0.174491,63912.0,63911.0,0.0024]
[1724571688829,1.043891,63912.0,63911.0,0.0024]
[1724571692432,1.1216855,63912.0,63911.0,0.0024]
[1724571692929,1.06924159,63912.0,63911.0,0.0024]
[1724571693545,1.43004159,63912.0,63911.0,0.0024]
[1724571694730,0.078202,63904.0,63902.0,0.36103486]
[1724571695138,0.07784567,63905.0,63902.0,0.00023486]
[1724571695139,0.078202,63903.0,63902.0,0.00023486]
[1724571695361,1.08435692,63903.0,63902.0,0.00023486]
[1724571695531,1.55423692,63903.0,63902.0,0.00023486]
[1724571695728,1.64765172,63903.0,63893.0,0.04673535]
[1724571695940,0.078214,63894.0,63891.0,0.12495235]
[1724571696235,0.078215,63893.0,63891.0,0.12495235]
[1724571696437,0.078215,63893.0,63891.0,0.078217]
[1724571696632,0.0004,63892.0,63891.0,0.078217]
[1724571696836,0.0004,63892.0,63889.0,0.04673535]
[1724571697141,0.07824277,63892.0,63886.0,0.12519321]
[1724571697446,0.07824277,63892.0,63886.0,0.00023486]
[1724571697447,0.3608,63887.0,63886.0,0.00023486]
[1724571697739,0.078228,63882.0,63870.0,0.04684739]
[1724571697937,0.3608,63874.0,63866.0,0.12509339]
[1724571698139,0.439038,63874.0,63865.0,0.04684739]
[1724571698437,0.439038,63874.0,63864.0,0.078249]
[1724571698438,0.50154399,63874.0,63864.0,0.078249]
[1724571698641,0.50154399,63874.0,63867.0,0.00023486]
[1724571698842,0.439438,63874.0,63867.0,0.00023486]
[1724571700237,0.439438,63874.0,63873.0,0.0095]
[1724571700640,0.439438,63874.0,63873.0,0.0055]
[1724571700833,0.439438,63874.0,63873.0,0.0105]
[1724571707845,0.439438,63874.0,63873.0,0.0035]
[1724571708044,0.439438,63874.0,63873.0,0.0065]
[1724571708449,0.439438,63874.0,63873.0,0.0035]
[1724571708649,0.439438,63874.0,63873.0,0.0055]
[1724571709538,0.439438,63874.0,63873.0,0.0045]
[1724571711647,0.0004,63874.0,63873.0,0.082739]
[1724571722860,0.04688547,63874.0,63873.0,0.082739]
[1724571723366,0.0004,63874.0,63873.0,0.082739]
[1724571724355,0.06243376,63874.0,63873.0,0.082739]
[1724571724757,0.0004,63874.0,63873.0,0.082739]
[1724571726261,0.07814406,63874.0,63873.0,0.082739]
[1724571727255,0.0257646,63874.0,63873.0,0.082739]
[1724571730664,0.1157646,63874.0,63873.0,0.082739]
[1724571730964,0.1940026,63874.0,63873.0,0.0045]
[1724571734459,0.1040026,63874.0,63873.0,0.0045]
[1724571736061,0.078638,63874.0,63873.0,0.05134739]
[1724571736265,0.1040026,63874.0,63873.0,0.05134739]
[1724571736767,0.078638,63874.0,63873.0,0.05134739]
[1724571736962,0.10400274,63874.0,63873.0,0.0045]
[1724571740976,0.19729561,63874.0,63873.0,0.0045]
[1724571743166,0.19729591,63874.0,63873.0,0.0045]
[1724571743999,0.10400304,63874.0,63873.0,0.0045]
[1724571747941,0.078245,63868.0,63867.0,0.00023486]
[1724571748064,0.46441004,63868.0,63867.0,0.00023486]
[1724571748678,0.46481004,63868.0,63867.0,0.00023486]
[1724571749176,0.46481004,63868.0,63867.0,0.00823486]
[1724571750174,0.77819426,63868.0,63867.0,0.00823486]
[1724571750969,0.77819426,63868.0,63867.0,0.01623486]
[1724571750970,0.68481004,63868.0,63867.0,0.01623486]
[1724571751172,0.68481004,63868.0,63861.0,0.0004]
[1724571751173,0.078252,63862.0,63861.0,0.0004]
[1724571751374,0.46441704,63862.0,63861.0,0.0004]
[1724571751876,0.46481704,63862.0,63861.0,0.0004]
[1724571752380,0.46481704,63862.0,63861.0,0.0284]
[1724571753585,0.439452,63862.0,63861.0,0.0284]
[1724571754280,0.51716408,63862.0,63861.0,0.0284]
[1724571754473,0.60716408,63862.0,63861.0,0.0284]
[1724571756175,0.529452,63862.0,63861.0,0.0284]
[1724571757518,0.60716408,63862.0,63861.0,0.0284]
[1724571757684,0.529452,63862.0,63861.0,0.0284]
[1724571757884,0.55482366,63862.0,63861.0,0.0284]
[1724571758478,0.63307566,63862.0,63861.0,0.0284]
[1724571760879,0.607704,63862.0,63861.0,0.0284]
[1724571761380,0.63307577,63862.0,63861.0,0.0284]
[1724571764087,0.54307577,63862.0,63861.0,0.0284]
[1724571764287,0.63307577,63862.0,63861.0,0.0284]
[1724571766802,0.16826,63856.0,63855.0,0.00023486]
[1724571767083,0.52906,63856.0,63855.0,0.00023486]
[1724571767284,0.60668213,63856.0,63855.0,0.00023486]
[1724571768889,0.60768213,63856.0,63855.0,0.00323486]
[1724571769583,0.60768213,63856.0,63855.0,0.00823486]
[1724571769584,0.60868213,63856.0,63855.0,0.00823486]
[1724571770086,0.09,63845.0,63844.0,0.078274]
[1724571770686,0.09,63845.0,63842.0,0.0482]
[1724571770882,0.04657102,63844.0,63842.0,0.0482]
[1724571771195,0.09,63845.0,63842.0,0.0482]
[1724571771196,0.04656721,63843.0,63842.0,0.0482]
[1724571771385,0.04656721,63844.0,63842.0,0.0482]
[1724571771690,0.04656721,63844.0,63842.0,0.126477]
[1724571772084,0.089,63843.0,63842.0,0.126477]
[1724571772988,0.089,63843.0,63842.0,0.127477]
[1724571773387,0.089,63843.0,63842.0,0.126477]
[1724571773693,0.09,63843.0,63842.0,0.126477]
[1724571773988,0.001,63843.0,63842.0,0.126477]
[1724571774190,0.36172,63848.0,63847.0,0.078271]
[1724571774392,0.40738805,63848.0,63847.0,0.078271]
[1724571774593,0.00023486,63849.0,63848.0,0.07827]
[1724571774791,0.00023486,63849.0,63848.0,0.43907]
[1724571775895,0.0468258,63849.0,63848.0,0.43907]
[1724571776286,0.001,63848.0,63845.0,0.12512039]
[1724571776590,0.09,63847.0,63846.0,0.04684739]
[1724571776797,0.09,63847.0,63845.0,0.13684739]
[1724571776989,0.09,63847.0,63845.0,0.09]
[1724571777188,0.09,63847.0,63846.0,0.04684739]
[1724571777692,0.09,63847.0,63845.0,0.09]
[1724571777883,0.091,63847.0,63846.0,0.078271]
[1724571779596,0.091,63847.0,63846.0,0.080271]
[1724571779597,0.092,63847.0,63846.0,0.080271]
[1724571779786,0.13865527,63847.0,63846.0,0.080271]
[1724571779988,0.092,63847.0,63846.0,0.080271]
[1724571780394,0.04866404,63847.0,63846.0,0.12711839]
[1724571780595,0.002,63847.0,63846.0,0.080271]
[1724571782300,0.002,63847.0,63846.0,0.61261535]
[1724571783005,0.00023486,63849.0,63846.0,1.01261535]
[1724571783193,0.078653,63862.0,63849.0,0.09]
[1724571783194,0.07762213,63860.0,63849.0,0.09]
[1724571783393,0.0004,63862.0,63858.0,0.04689732]
[1724571783701,0.09,63859.0,63858.0,0.078257]
[1724571783896,0.09,63859.0,63858.0,0.12515432]
[1724571784200,0.1522378,63859.0,63858.0,0.078257]
[1724571784497,0.1522378,63859.0,63858.0,0.12515612]
[1724571784607,0.09,63859.0,63858.0,0.12515612]
[1724571784940,0.09,63859.0,63858.0,0.078257]
[1724571786103,0.09,63859.0,63858.0,0.080257]
[1724571786291,0.4508,63859.0,63858.0,0.002]
[1724571786492,0.530056,63859.0,63858.0,0.005]
[1724571786698,0.55542693,63859.0,63858.0,0.005]
[1724571786900,0.60780207,63859.0,63858.0,0.005]
[1724571787205,0.530056,63859.0,63858.0,0.005]
[1724571787808,0.529056,63859.0,63858.0,0.002]
[1724571788004,0.530056,63859.0,63858.0,0.003]
[1724571788199,0.60880207,63859.0,63858.0,0.011]
[1724571788406,0.51880207,63859.0,63858.0,0.011]
[1724571788704,0.51880207,63859.0,63852.0,0.00023486]
[1724571788705,0.078263,63853.0,63852.0,0.00023486]
[1724571788900,0.439063,63853.0,63852.0,0.00023486]
[1724571789503,0.439463,63853.0,63852.0,0.00023486]
[1724571789706,0.51720559,63853.0,63852.0,0.00023486]
[1724571789999,0.46683768,63853.0,63852.0,0.01523486]
[1724571790200,0.51919869,63853.0,63852.0,0.01523486]
[1724571790718,0.4668371,63853.0,63852.0,0.01523486]
[1724571790802,0.46683781,63853.0,63852.0,0.01523486]
[1724571792103,0.51919794,63853.0,63852.0,0.01523486]
[1724571792612,0.441463,63853.0,63852.0,0.01523486]
[1724571797708,0.51919606,63853.0,63852.0,0.01523486]
[1724571798409,0.15839606,63853.0,63852.0,0.01523486]
[1724571798606,0.441463,63853.0,63852.0,0.01523486]
[1724571798806,0.51919623,63853.0,63852.0,0.01523486]
[1724571800076,0.441463,63853.0,63852.0,0.01523486]
[1724571801619,0.0024,63853.0,63852.0,0.09349986]
[1724571808608,0.0024,63853.0,63852.0,0.14037223]
[1724571809916,0.3632,63853.0,63852.0,0.14037223]
[1724571810116,0.3632,63853.0,63852.0,0.09349986]
[1724571814522,0.4532,63853.0,63852.0,0.09349986]
[1724571814722,0.4532,63853.0,63852.0,0.01523486]
[1724571816256,0.53093323,63853.0,63852.0,0.01523486]
[1724571817619,0.531464,63853.0,63852.0,0.01523486]
[1724571817933,0.60919723,63853.0,63852.0,0.01523486]
[1724571819023,0.531464,63853.0,63852.0,0.01523486]
[1724571819251,0.441464,63853.0,63852.0,0.01523486]
[1724571819580,0.4532,63853.0,63852.0,0.01523486]
[1724571821732,0.53093323,63853.0,63852.0,0.01523486]
[1724571822122,0.4532,63853.0,63852.0,0.01523486]
[1724571822321,0.531464,63853.0,63852.0,0.01523486]
[1724571822525,0.55683709,63853.0,63852.0,0.01523486]
[1724571823333,0.531464,63853.0,63852.0,0.01523486]
[1724571824228,0.60925373,63853.0,63852.0,0.01523486]
[1724571824928,0.24845373,63853.0,63852.0,0.01523486]
[1724571825238,0.60925373,63853.0,63852.0,0.01523486]
[1724571828027,0.53098973,63853.0,63852.0,0.01523486]
[1724571828220,0.3632,63853.0,63852.0,0.01523486]
[1724571828432,0.53098973,63853.0,63852.0,0.01523486]
[1724571828939,0.53098973,63853.0,63852.0,0.09349986]
[1724571829432,0.4532,63853.0,63852.0,0.09349986]
[1724571830539,0.0924,63853.0,63852.0,0.09349986]
[1724571833266,0.17018973,63853.0,63852.0,0.09349986]
[1724571833739,0.0924,63853.0,63852.0,0.09349986]
[1724571834232,0.17018973,63853.0,63852.0,0.09349986]
[1724571837032,0.11777278,63853.0,63852.0,0.01523486]
[1724571838242,0.11777278,63853.0,63852.0,0.09349986]
[1724571842944,0.11777278,63853.0,63852.0,0.01523486]
[1724571843352,0.11777309,63853.0,63852.0,0.01523486]
[1724571843946,0.19603709,63853.0,63852.0,0.01523486]
[1724571847953,0.19603858,63853.0,63852.0,0.01523486]
[1724571850151,0.02777458,63853.0,63852.0,0.01523486]
[1724571850446,0.11777458,63853.0,63852.0,0.09349986]
[1724571852449,0.11777308,63853.0,63852.0,0.09349986]
[1724571854856,0.19603708,63853.0,63852.0,0.01523486]
[1724571855352,0.28938327,63853.0,63852.0,0.01523486]
[1724571856356,0.19603708,63853.0,63852.0,0.01523486]
[1724571857223,0.19603854,63853.0,63852.0,0.01523486]
[1724571857552,0.11777454,63853.0,63852.0,0.09349986]
[1724571862357,0.117773,63853.0,63852.0,0.09349986]
[1724571863062,0.08025854,63853.0,63852.0,0.14037223]
[1724571863262,0.0024,63853.0,63852.0,0.09349986]
[1724571863555,0.0024,63853.0,63852.0,0.18989986]
[1724571863760,0.0024,63853.0,63852.0,0.23699986]
[1724571866264,0.06466881,63853.0,63852.0,0.23699986]
[1724571866860,0.0024,63853.0,63852.0,0.23699986]
[1724571867062,0.0024,63853.0,63852.0,0.29952962]
[1724571867260,0.0024,63853.0,63852.0,0.23699986]
[1724571868763,0.0024,63853.0,63852.0,0.23681237]
[1724571868764,0.06466881,63853.0,63852.0,0.23681237]
[1724571868960,0.06464101,63853.0,63852.0,0.18989986]
[1724571869955,0.0024,63853.0,63852.0,0.23681237]
[1724571870474,0.06463797,63853.0,63852.0,0.23681237]
[1724571870761,0.06463797,63853.0,63852.0,0.18989986]
[1724571871069,0.06463797,63853.0,63852.0,0.23681047]
[1724571871859,0.0024,63853.0,63852.0,0.18989986]
[1724571872969,0.0024,63853.0,63852.0,0.25242962]
[1724571873160,0.0024,63853.0,63852.0,0.18989986]
[1724571874762,0.0024,63853.0,63852.0,0.14309986]
[1724571874763,0.06463797,63853.0,63852.0,0.14309986]
[1724571875464,0.06463797,63853.0,63852.0,0.09349986]
[1724571875674,0.0024,63853.0,63852.0,0.09349986]
[1724571877271,0.06462757,63853.0,63852.0,0.09349986]
[1724571878368,0.14289157,63853.0,63852.0,0.09349986]
[1724571878594,0.080664,63853.0,63852.0,0.09349986]
[1724571879073,0.0024,63853.0,63852.0,0.09349986]
[1724571879469,0.06463452,63853.0,63852.0,0.09349986]
[1724571879975,0.0024,63853.0,63852.0,0.09349986]
[1724571890371,0.0024,63853.0,63852.0,0.14040854]
[1724571890977,0.02777157,63853.0,63852.0,0.09349986]
[1724571891166,0.0024,63853.0,63852.0,0.09349986]
[1724571892282,0.08021308,63853.0,63852.0,0.09349986]
[1724571896086,0.0024,63853.0,63852.0,0.14040854]
[1724571898589,0.0024,63853.0,63852.0,0.09349986]
[1724571898776,0.0024,63853.0,63852.0,0.14045498]
[1724571899009,0.0024,63853.0,63852.0,0.09349986]
[1724571903687,0.08021308,63853.0,63852.0,0.09349986]
[1724571905189,0.08026944,63853.0,63852.0,0.09349986]
[1724571905383,0.0024,63853.0,63852.0,0.14046953]
[1724571906102,0.08026893,63853.0,63852.0,0.09349986]
[1724571907885,0.0024,63853.0,63852.0,0.09349986]
[1724571908152,0.08027184,63853.0,63852.0,0.09349986]
[1724571908387,0.0024,63853.0,63852.0,0.09349986]
[1724571909787,0.08027184,63853.0,63852.0,0.09349986]
[1724571909989,0.0024,63853.0,63852.0,0.09349986]
[1724571910389,0.08027184,63853.0,63852.0,0.09349986]
[1724571913101,0.09343031,63864.0,63859.0,0.078255]
[1724571913282,0.00023486,63865.0,63864.0,0.07825]
[1724571913487,0.09023486,63865.0,63864.0,0.12520258]
[1724571913686,0.11560218,63865.0,63864.0,0.12520258]
[1724571914094,0.16806455,63865.0,63864.0,0.07825]
[1724571914891,0.16806455,63865.0,63864.0,0.07925]
[1724571915086,0.09023486,63865.0,63864.0,0.07925]
[1724571917192,0.16806455,63865.0,63864.0,0.07925]
[1724571917386,0.07806455,63865.0,63864.0,0.07925]
[1724571917590,0.16806455,63865.0,63864.0,0.07925]
[1724571917982,0.00023486,63865.0,63864.0,0.07925]
[1724571918183,0.09023486,63865.0,63864.0,0.07925]
[1724571920000,0.078255,63861.0,63860.0,0.04688957]
[1724571920228,0.078263,63854.0,63846.0,0.00148]
[1724571920527,0.078263,63854.0,63839.0,0.0626053]
[1724571920528,0.88626878,63853.0,63839.0,0.12517233]
[1724571920633,0.88626878,63853.0,63841.0,0.078278]
[1724571920634,0.3608,63843.0,63841.0,0.078278]
[1724571920888,0.09,63842.0,63841.0,0.12516933]
[1724571921198,0.09,63842.0,63840.0,0.04689133]
[1724571921388,0.09,63842.0,63838.0,0.04689133]
[1724571921389,0.04664351,63841.0,63838.0,0.04689133]
[1724571921691,0.04664351,63841.0,63839.0,0.168281]
[1724571921895,0.40744351,63843.0,63841.0,0.078278]
[1724571922114,0.3608,63843.0,63842.0,0.1386]
[1724571922285,0.001,63843.0,63842.0,0.1386]
[1724571922493,0.001,63843.0,63842.0,0.4994]
[1724571923195,0.04664351,63846.0,63843.0,0.078276]
[1724571923401,0.04664351,63847.0,63844.0,0.04687847]
[1724571923887,0.04664351,63846.0,63844.0,0.078275]
[1724571924299,0.04664351,63847.0,63844.0,0.078275]
[1724571924595,0.04664351,63846.0,63844.0,0.078275]
[1724571924797,0.04664351,63845.0,63844.0,0.078275]
[1724571925000,0.09,63846.0,63844.0,0.078275]
[1724571925498,0.09,63846.0,63844.0,0.079275]
[1724571926300,0.09,63846.0,63844.0,0.078275]
[1724571926585,0.04762144,63845.0,63844.0,0.079275]
[1724571927003,0.001,63845.0,63844.0,0.079275]
[1724571927706,0.001,63845.0,63844.0,0.12615347]
[1724571927707,0.04762144,63845.0,63844.0,0.12615347]
[1724571927892,0.04662144,63845.0,63844.0,0.078275]
[1724571928089,0.04662144,63845.0,63844.0,0.079275]
[1724571928290,0.001,63845.0,63844.0,0.949155]
[1724571928490,0.0014,63845.0,63844.0,0.949155]
[1724571928792,0.001,63846.0,63844.0,1.01163165]
[1724571928998,0.00023486,63848.0,63847.0,0.168271]
[1724571929202,0.00023486,63848.0,63847.0,0.638151]
[1724571929501,0.00023486,63848.0,63847.0,1.038151]
[1724571929906,0.00023486,63848.0,63847.0,0.638151]
[1724571930802,0.00023486,63848.0,63847.0,1.038151]
[1724571931198,0.00123486,63848.0,63847.0,1.040151]
[1724571931603,0.00123486,63848.0,63847.0,0.640151]
[1724571931909,0.00123486,63848.0,63847.0,1.040151]
[1724571932198,0.00123486,63848.0,63847.0,0.640151]
[1724571932401,0.00123486,63848.0,63847.0,1.041151]
[1724571932402,0.00223486,63848.0,63847.0,1.041151]
[1724571932996,0.00223486,63848.0,63847.0,0.641151]
[1724571933247,0.00223486,63848.0,63847.0,1.041151]
[1724571933403,0.00223486,63848.0,63847.0,0.641151]
[1724571933604,0.00223486,63848.0,63847.0,1.041151]
[1724571934100,0.00223486,63848.0,63847.0,1.401951]
[1724571934518,0.00223486,63848.0,63847.0,1.001951]
[1724571934701,0.00223486,63848.0,63847.0,1.401951]
[1724571934905,0.00223486,63848.0,63847.0,1.001951]
[1724571935410,0.00223486,63848.0,63847.0,0.57892849]
[1724571938102,0.00223486,63848.0,63847.0,0.171271]
[1724571938298,0.00223486,63848.0,63847.0,0.532071]
[1724571938705,0.00223486,63848.0,63847.0,0.442071]
[1724571938706,0.09223486,63848.0,63847.0,0.442071]
[1724571939020,0.1388563,63848.0,63847.0,0.442071]
[1724571939306,0.09223486,63848.0,63847.0,0.442071]
[1724571940709,0.09223486,63848.0,63847.0,0.081271]
[1724571942908,0.13884934,63848.0,63847.0,0.081271]
[1724571944311,0.00223486,63848.0,63847.0,0.171271]
[1724571944519,0.00223486,63848.0,63847.0,0.21812837]
[1724571944812,0.00223486,63848.0,63847.0,0.171271]
[1724571945115,0.00223486,63848.0,63847.0,0.081271]
[1724571945521,0.00223486,63848.0,63847.0,0.12814423]
[1724571946214,0.00223486,63848.0,63847.0,0.081271]
[1724571946713,0.13886496,63848.0,63847.0,0.081271]
[1724571946918,0.09223486,63848.0,63847.0,0.081271]
[1724571947614,0.13888498,63848.0,63847.0,0.081271]
[1724571947917,0.00223486,63848.0,63847.0,0.12814423]
[1724571948155,0.04888498,63848.0,63847.0,0.081271]
[1724571948415,0.00223486,63848.0,63847.0,0.1437464]
[1724571948609,0.00223486,63848.0,63847.0,0.081271]
[1724571948610,0.04888498,63848.0,63847.0,0.081271]
[1724571949218,0.00223486,63848.0,63847.0,0.1437464]
[1724571949420,0.00223486,63848.0,63847.0,0.081271]
[1724571949716,0.00223486,63848.0,63847.0,0.1437464]
[1724571950114,0.00223486,63848.0,63847.0,0.081271]
[1724571950315,0.06219075,63852.0,63851.0,0.078266]
[1724571950509,0.04667914,63852.0,63851.0,0.50161536]
[1724571950715,0.1378,63862.0,63851.0,0.50161536]
[1724571950716,0.04668171,63853.0,63851.0,1.308906]
[1724571950914,0.04668171,63853.0,63852.0,0.217465]
[1724571951115,0.04668171,63854.0,63853.0,0.078264]
[1724571951309,0.04668171,63854.0,63853.0,0.261964]
[1724571951522,0.04668171,63856.0,63855.0,0.078261]
[1724571951710,0.06242561,63860.0,63855.0,0.078261]